Departmental Area,Entity,Payment Date,Expense Type,Expense Area,Supplier Name,Payment Reference,Invoice Distribution Amount,Description,Suplier Type,Expenditure Type
UK Statistics Family,Office for National Statistics,01/10/2020,Exp - Purchase Of Goods/Services - Incentive Payments,Interviewer Support,P & Mm Ltd,188776," 194,095.40 ",Survey Response Incentive Vouchers,Large,Programme Expenditure
UK Statistics Family,Office for National Statistics,01/10/2020,Exp - Purchase Of Goods And Services Consultants,Consultancy Management,Bloom Procurement Services Ltd,188787," 26,575.38 ",Consultancy,Large,Programme Expenditure
UK Statistics Family,Office for National Statistics,01/10/2020,Exp - Purchase Of Goods/Services - Contractors,Tech Delivery Legacy Sp,Malikshaw Interim & Executive,188788," 7,200.00 ",Information Management Services,SME,Programme Expenditure
UK Statistics Family,Office for National Statistics,01/10/2020,Exp - Purchase Of Goods/Services - Contractors,Digital Delivery,Malikshaw Interim & Executive,188788," 27,463.94 ",Information Management Services,SME,Programme Expenditure
UK Statistics Family,Office for National Statistics,01/10/2020,Exp - Purchase Of Goods/Services - Contractors,Digital Delivery,Malikshaw Interim & Executive,188788," 11,001.22 ",Information Management Services,SME,Programme Expenditure
UK Statistics Family,Office for National Statistics,01/10/2020,Exp - Purchase Of Goods/Services - Other Facilities Costs,Census CCS Data Collection,Gresham Office Furniture Limited,188789," 26,384.40 ",Office Furniture,SME,Programme Expenditure
UK Statistics Family,Office for National Statistics,01/10/2020,EXP - PURCHASE OF GOODS/SERVICES -  NON IT CONTRACTUAL PAYMENTS,Covid Infection Survey,HH Associates Ltd,188791," 366,519.22 ",Print and Post Services,SME,Programme Expenditure
UK Statistics Family,Office for National Statistics,01/10/2020,EXP - PURCHASE OF GOODS/SERVICES -  NON IT CONTRACTUAL PAYMENTS,Census CCS Data Collection,Adecco UK Limited,188792," 125,036.40 ",Census People Services Contractual,SME,Programme Expenditure
UK Statistics Family,Office for National Statistics,01/10/2020,Exp - Purchase Of Goods And Services Consultants,Consultancy Management,Bloom Procurement Services Ltd,188795," 425,942.76 ",Consultancy,Large,Programme Expenditure
UK Statistics Family,Office for National Statistics,01/10/2020,Rent Payable,Property London,Tandem Property Asset Management LLP (Rent),188796," 243,432.00 ",Rental Charges,Large,Programme Expenditure
UK Statistics Family,Office for National Statistics,01/10/2020,Exp - Purchase Of Goods/Services - Contractors,Business Architecture,LA FOSSE ASSOCIATES LIMITED,188801," 10,140.00 ",Information Management Services,Large,Programme Expenditure
UK Statistics Family,Office for National Statistics,01/10/2020,Exp - Purchase Of Goods/Services - Contractors,Business Architecture,LA FOSSE ASSOCIATES LIMITED,188801," 62,940.00 ",Information Management Services,Large,Programme Expenditure
UK Statistics Family,Office for National Statistics,01/10/2020,Exp - Purchase Of Goods/Services - Contractors,Census CCS Data Collection,LA FOSSE ASSOCIATES LIMITED,188801," 6,900.00 ",Information Management Services,Large,Programme Expenditure
UK Statistics Family,Office for National Statistics,01/10/2020,Exp - Purchase Of Goods/Services - Contractors,Programme Support,LA FOSSE ASSOCIATES LIMITED,188801," 6,600.00 ",Information Management Services,Large,Programme Expenditure
UK Statistics Family,Office for National Statistics,01/10/2020,Exp - Purchase Of Goods/Services - Contractors,Portfolio Delivery,LA FOSSE ASSOCIATES LIMITED,188801," 9,660.00 ",Information Management Services,Large,Programme Expenditure
UK Statistics Family,Office for National Statistics,01/10/2020,Exp - Purchase Of Goods/Services - Contractors,Data Architecture,LA FOSSE ASSOCIATES LIMITED,188801," 4,050.00 ",Information Management Services,Large,Programme Expenditure
UK Statistics Family,Office for National Statistics,01/10/2020,Exp - Purchase Of Goods/Services - Contractors,Tech Delivery Legacy Sp,LA FOSSE ASSOCIATES LIMITED,188801," 6,480.00 ",Information Management Services,Large,Programme Expenditure
UK Statistics Family,Office for National Statistics,01/10/2020,Exp - Purchase Of Goods/Services - Contractors,Digital Delivery,LA FOSSE ASSOCIATES LIMITED,188801," 16,559.72 ",Information Management Services,Large,Programme Expenditure
UK Statistics Family,Office for National Statistics,01/10/2020,Exp - Purchase Of Goods/Services - Contractors,Digital Delivery,LA FOSSE ASSOCIATES LIMITED,188801," 14,400.00 ",Information Management Services,Large,Programme Expenditure
UK Statistics Family,Office for National Statistics,01/10/2020,Marketing & Media,Stakeholder Engagement And Comms,M&C Saatchi UK Ltd,188802," 416,832.00 ",Marketing Services,Large,Programme Expenditure
UK Statistics Family,Office for National Statistics,02/10/2020,Exp - Permanent UK Staff - PRP Voucher Payments,ONS Corporate Funds,Park Retail Ltd,188809,-141.10 ,Performance Reward Vouchers,Large,Programme Expenditure
UK Statistics Family,Office for National Statistics,02/10/2020,Exp - Purchase Of Goods/Services - Incentive Payments,Survey Management,Park Retail Ltd,188809," 40,812.36 ",Survey Response Incentive Vouchers,Large,Programme Expenditure
UK Statistics Family,Office for National Statistics,02/10/2020,Exp - Purchase Of Goods/Services - Incentive Payments,Survey Management,Park Retail Ltd,188809," 12,287.96 ",Survey Response Incentive Vouchers,Large,Programme Expenditure
UK Statistics Family,Office for National Statistics,02/10/2020,Exp - Purchase Of Goods/Services - Incentive Payments,Survey Management,Park Retail Ltd,188809," 9,934.89 ",Survey Response Incentive Vouchers,Large,Programme Expenditure
UK Statistics Family,Office for National Statistics,02/10/2020,Exp - Purchase Of Goods/Services - Contractors,Programme Delivery,Certes Computing Ltd,188812," 11,528.57 ",Information Management Services,SME,Programme Expenditure
UK Statistics Family,Office for National Statistics,02/10/2020,Exp - Purchase Of Goods/Services - Contractors,Programme Delivery,Certes Computing Ltd,188812," 11,529.00 ",Information Management Services,SME,Programme Expenditure
UK Statistics Family,Office for National Statistics,02/10/2020,Exp - Purchase Of Goods/Services - Contractors,Security Advisory,Certes Computing Ltd,188812," 15,820.46 ",Information Management Services,SME,Programme Expenditure
UK Statistics Family,Office for National Statistics,02/10/2020,Exp - Purchase Of Goods/Services - Contractors,Security Advisory,Certes Computing Ltd,188812," 14,571.48 ",Information Management Services,SME,Programme Expenditure
UK Statistics Family,Office for National Statistics,02/10/2020,Exp - Purchase Of Goods/Services - Contractors,Security Advisory,Certes Computing Ltd,188812," 12,489.84 ",Information Management Services,SME,Programme Expenditure
UK Statistics Family,Office for National Statistics,02/10/2020,Exp - Purchase Of Goods/Services - Contractors,Strategy And Architecture,Certes Computing Ltd,188812," 14,987.16 ",Information Management Services,SME,Programme Expenditure
UK Statistics Family,Office for National Statistics,02/10/2020,Exp - Purchase Of Goods/Services - Contractors,Tech Delivery Legacy Sp,Certes Computing Ltd,188812," 17,037.30 ",Information Management Services,SME,Programme Expenditure
UK Statistics Family,Office for National Statistics,02/10/2020,Exp - Purchase Of Goods/Services - Contractors,IT Applications,Certes Computing Ltd,188812," 13,386.56 ",Information Management Services,SME,Programme Expenditure
UK Statistics Family,Office for National Statistics,02/10/2020,Exp - Purchase Of Goods/Services - Contractors,Digital Delivery,Certes Computing Ltd,188812," 7,200.00 ",Information Management Services,SME,Programme Expenditure
UK Statistics Family,Office for National Statistics,02/10/2020,Exp - Purchase Of Goods/Services - Contractors,Digital Delivery,Certes Computing Ltd,188812," 27,049.82 ",Information Management Services,SME,Programme Expenditure
UK Statistics Family,Office for National Statistics,02/10/2020,Exp - Purchase Of Goods/Services - Contractors,Digital Delivery,Certes Computing Ltd,188812," 11,560.74 ",Information Management Services,SME,Programme Expenditure
UK Statistics Family,Office for National Statistics,02/10/2020,Exp - Purchase Of Goods/Services - Contractors,Digital Delivery,Certes Computing Ltd,188812," 11,977.45 ",Information Management Services,SME,Programme Expenditure
UK Statistics Family,Office for National Statistics,02/10/2020,Exp - Short-Term Contract & Agency Staff - Full Cost,Stakeholder Engagement And Comms,La International,188813," 2,351.18 ",Information Management Services,SME,Programme Expenditure
UK Statistics Family,Office for National Statistics,02/10/2020,Exp - Purchase Of Goods/Services - Contractors,Testing,La International,188813," 10,252.26 ",Information Management Services,SME,Programme Expenditure
UK Statistics Family,Office for National Statistics,02/10/2020,Exp - Purchase Of Goods/Services - Contractors,Testing,La International,188813," 5,638.75 ",Information Management Services,SME,Programme Expenditure
UK Statistics Family,Office for National Statistics,02/10/2020,Exp - Purchase Of Goods/Services - Contractors,Security Advisory,La International,188813," 3,470.85 ",Information Management Services,SME,Programme Expenditure
UK Statistics Family,Office for National Statistics,02/10/2020,Exp - Purchase Of Goods/Services - Contractors,Data Architecture,La International,188813," 3,524.22 ",Information Management Services,SME,Programme Expenditure
UK Statistics Family,Office for National Statistics,02/10/2020,Exp - Purchase Of Goods/Services - Contractors,Data Architecture,La International,188813," 3,588.30 ",Information Management Services,SME,Programme Expenditure
UK Statistics Family,Office for National Statistics,02/10/2020,Other Goods And Services,Ask Business Services,Cabinet Office,188819, 748.80 ,Fast Stream Recruitment,Large,Programme Expenditure
UK Statistics Family,Office for National Statistics,02/10/2020,Permanent Staff Costs,Expansion Programme,Cabinet Office,188819," 54,497.84 ",Fast Stream Recruitment,Large,Programme Expenditure
UK Statistics Family,Office for National Statistics,02/10/2020,Permanent Staff Costs,Tech Delivery Legacy Sp,Cabinet Office,188819," 13,393.18 ",Fast Stream Recruitment,Large,Programme Expenditure
UK Statistics Family,Office for National Statistics,02/10/2020,Permanent Staff Costs,IT Operations,Cabinet Office,188819," 13,393.18 ",Fast Stream Recruitment,Large,Programme Expenditure
UK Statistics Family,Office for National Statistics,02/10/2020,Permanent Staff Costs,Office Of Chief Data And Information,Cabinet Office,188819," 6,696.59 ",Fast Stream Recruitment,Large,Programme Expenditure
UK Statistics Family,Office for National Statistics,02/10/2020,Permanent Staff Costs,Digital Delivery,Cabinet Office,188819," 13,393.18 ",Fast Stream Recruitment,Large,Programme Expenditure
UK Statistics Family,Office for National Statistics,02/10/2020,Permanent Staff Costs,Digital Delivery,Cabinet Office,188819," 6,696.59 ",Fast Stream Recruitment,Large,Programme Expenditure
UK Statistics Family,Office for National Statistics,02/10/2020,Permanent Staff Costs,Digital Delivery,Cabinet Office,188819," 66,965.90 ",Fast Stream Recruitment,Large,Programme Expenditure
UK Statistics Family,Office for National Statistics,02/10/2020,Permanent Staff Costs,Digital Delivery,Cabinet Office,188819," 40,179.54 ",Fast Stream Recruitment,Large,Programme Expenditure
UK Statistics Family,Office for National Statistics,02/10/2020,"ICT Outsourcing, Maintenance And Support",Senior Management Team Design,Totalmobile Ltd,188820," 128,214.00 ",Information Management Services,SME,Programme Expenditure
UK Statistics Family,Office for National Statistics,02/10/2020,"ICT Outsourcing, Maintenance And Support",Consultancy Management,Totalmobile Ltd,188820," 159,840.00 ",Information Management Services,SME,Programme Expenditure
UK Statistics Family,Office for National Statistics,02/10/2020,Exp - Purchase Of Goods/Services - Other ICT Costs Software,Policy Secretariat,Diligent Boardbooks Limited,188821," 38,160.00 ",Software Licenses,Large,Programme Expenditure
UK Statistics Family,Office for National Statistics,05/10/2020,Exp - Purchase Of Goods/Services - Contractors,Testing,Certes Computing Ltd,188904," 9,735.60 ",Information Management Services,SME,Programme Expenditure
UK Statistics Family,Office for National Statistics,05/10/2020,Exp - Purchase Of Goods/Services - Contractors,Testing,Certes Computing Ltd,188904," 9,735.60 ",Information Management Services,SME,Programme Expenditure
UK Statistics Family,Office for National Statistics,05/10/2020,Exp - Purchase Of Goods/Services - Contractors,Security Advisory,Certes Computing Ltd,188904," 14,891.72 ",Information Management Services,SME,Programme Expenditure
UK Statistics Family,Office for National Statistics,05/10/2020,Exp - Purchase Of Goods/Services - Contractors,Data Architecture,Certes Computing Ltd,188904," 24,837.52 ",Information Management Services,SME,Programme Expenditure
UK Statistics Family,Office for National Statistics,05/10/2020,Exp - Purchase Of Goods/Services - Contractors,Data Architecture,Certes Computing Ltd,188904," 15,333.68 ",Information Management Services,SME,Programme Expenditure
UK Statistics Family,Office for National Statistics,05/10/2020,Exp - Purchase Of Goods/Services - Contractors,Testing,La International,188905," 10,946.43 ",Information Management Services,SME,Programme Expenditure
UK Statistics Family,Office for National Statistics,05/10/2020,Exp - Purchase Of Goods/Services - Contractors,Testing,La International,188905," 15,474.53 ",Information Management Services,SME,Programme Expenditure
UK Statistics Family,Office for National Statistics,05/10/2020,Exp - Purchase Of Goods/Services - Contractors,Security Advisory,La International,188905," 3,470.85 ",Information Management Services,SME,Programme Expenditure
UK Statistics Family,Office for National Statistics,05/10/2020,Exp - Purchase Of Goods/Services - Contractors,Data Architecture,La International,188905," 6,394.86 ",Information Management Services,SME,Programme Expenditure
UK Statistics Family,Office for National Statistics,05/10/2020,Exp - Purchase Of Goods/Services - Contractors,Data Architecture,La International,188905," 3,524.22 ",Information Management Services,SME,Programme Expenditure
UK Statistics Family,Office for National Statistics,05/10/2020,Exp - Purchase Of Goods/Services - Contractors,Data Architecture,La International,188905," 10,316.40 ",Information Management Services,SME,Programme Expenditure
UK Statistics Family,Office for National Statistics,05/10/2020,Exp - Purchase Of Goods/Services - Contractors,Tech Delivery SRS,La International,188905," 3,588.30 ",Information Management Services,SME,Programme Expenditure
UK Statistics Family,Office for National Statistics,05/10/2020,Exp - Purchase Of Goods/Services - Contractors,Tech Delivery Legacy Sp,La International,188905," 13,392.04 ",Information Management Services,SME,Programme Expenditure
UK Statistics Family,Office for National Statistics,05/10/2020,Exp - Purchase Of Goods/Services - Contractors,IT Applications,La International,188905," 23,337.20 ",Information Management Services,SME,Programme Expenditure
UK Statistics Family,Office for National Statistics,05/10/2020,Exp - Purchase Of Goods/Services - Contractors,Digital Delivery,La International,188905," 3,591.00 ",Information Management Services,SME,Programme Expenditure
UK Statistics Family,Office for National Statistics,05/10/2020,Other Goods And Services,Social Survey Transformation Newport,APS Group,188906," 511,399.82 ",Mailing Services,Large,Programme Expenditure
UK Statistics Family,Office for National Statistics,05/10/2020,Exp - Purchase Of Goods/Services - Other Facilities Costs,Ask Business Services,BaxterStorey,188907," 53,699.68 ",On-Site Facilities,Large,Programme Expenditure
UK Statistics Family,Office for National Statistics,05/10/2020,Exp - Purchase Of Goods/Services - Contractors,Business Architecture,Talent International,188908," 12,540.00 ",Information Management Services,SME,Programme Expenditure
UK Statistics Family,Office for National Statistics,05/10/2020,Exp - Purchase Of Goods/Services - Contractors,Data Architecture,Talent International,188908," 64,674.00 ",Information Management Services,SME,Programme Expenditure
UK Statistics Family,Office for National Statistics,05/10/2020,Exp - Purchase Of Goods/Services - Contractors,Tech Delivery Legacy Sp,Talent International,188908," 14,820.00 ",Information Management Services,SME,Programme Expenditure
UK Statistics Family,Office for National Statistics,06/10/2020,Hosting,IT Operations,Crown Hosting Data Centres Limited,188977," 87,401.48 ",Information Management Services,SME,Programme Expenditure
UK Statistics Family,Office for National Statistics,06/10/2020,Exp - Purchase Of Goods/Services - Training & Development - Seminar & Conference Fees,Portfolio Delivery,Oxford Said Business School,188983," 14,583.00 ",Training and Educational Services,SME,Programme Expenditure
UK Statistics Family,Office for National Statistics,06/10/2020,Exp - Purchase Of Goods/Services - Training & Development - Seminar & Conference Fees,Portfolio Delivery,Oxford Said Business School,188983," 10,417.00 ",Training and Educational Services,SME,Programme Expenditure
UK Statistics Family,Office for National Statistics,06/10/2020,Exp - Purchase Of Goods/Services - IT Contractual Services,Strategy And Architecture,Medley Business Solutions Ltd,188984," 27,561.60 ",Information Management Services,Large,Programme Expenditure
UK Statistics Family,Office for National Statistics,07/10/2020,Exp - Purchase Of Goods/Services - Incentive Payments,Survey Management,Park Retail Ltd,189004," 23,078.96 ",Survey Response Incentive Vouchers,Large,Programme Expenditure
UK Statistics Family,Office for National Statistics,07/10/2020,Exp - Purchase Of Goods/Services - Incentive Payments,Survey Management,Park Retail Ltd,189004," 8,085.31 ",Survey Response Incentive Vouchers,Large,Programme Expenditure
UK Statistics Family,Office for National Statistics,07/10/2020,Exp - Purchase Of Goods/Services - Contractors,Data Architecture,Concept Information Technology Ltd T/A Concept Resourcing,189006," 13,452.00 ",Information Management Services,Large,Programme Expenditure
UK Statistics Family,Office for National Statistics,07/10/2020,Exp - Purchase Of Goods/Services - IT Contractual Services,Tech Delivery Data As A Platform,Concept Information Technology Ltd T/A Concept Resourcing,189006," 11,100.00 ",Information Management Services,Large,Programme Expenditure
UK Statistics Family,Office for National Statistics,07/10/2020,Exp - Short-Term Contract & Agency Staff - Full Cost,Labour Market,Concept Information Technology Ltd T/A Concept Resourcing,189006," 2,802.44 ",Information Management Services,Large,Programme Expenditure
UK Statistics Family,Office for National Statistics,07/10/2020,"ICT Outsourcing, Maintenance And Support",Researcher Support And Data Access ,Equiniti Limited,189009," 2,996.71 ",Information Management Services,Large,Programme Expenditure
UK Statistics Family,Office for National Statistics,07/10/2020,"ICT Outsourcing, Maintenance And Support",Researcher Support And Data Access ,Equiniti Limited,189009," 14,294.05 ",Information Management Services,Large,Programme Expenditure
UK Statistics Family,Office for National Statistics,07/10/2020,End User Software And Hardware,Researcher Support And Data Access ,Equiniti Limited,189009," 1,482.00 ",Information Management Services,Large,Programme Expenditure
UK Statistics Family,Office for National Statistics,07/10/2020,End User Software And Hardware,Researcher Support And Data Access ,Equiniti Limited,189009," 51,974.03 ",Information Management Services,Large,Programme Expenditure
UK Statistics Family,Office for National Statistics,07/10/2020,"ICT Outsourcing, Maintenance And Support",IT Operations,Equiniti Limited,189009," 28,475.11 ",Information Management Services,Large,Programme Expenditure
UK Statistics Family,Office for National Statistics,07/10/2020,Hosting,IT Operations,Equiniti Limited,189009," 49,167.79 ",Information Management Services,Large,Programme Expenditure
UK Statistics Family,Office for National Statistics,07/10/2020,Exp - Purchase Of Goods/Services - Contractors,Testing,Certes Computing Ltd,189010," 13,580.56 ",Information Management Services,SME,Programme Expenditure
UK Statistics Family,Office for National Statistics,07/10/2020,Exp - Purchase Of Goods/Services - Contractors,Commercial Services,Certes Computing Ltd,189010," 7,472.22 ",Information Management Services,SME,Programme Expenditure
UK Statistics Family,Office for National Statistics,07/10/2020,Exp - Purchase Of Goods/Services - Contractors,Tech Delivery Legacy Sp,Certes Computing Ltd,189010," 13,678.63 ",Information Management Services,SME,Programme Expenditure
UK Statistics Family,Office for National Statistics,07/10/2020,Exp - Purchase Of Goods/Services - Contractors,Tech Delivery Data As A Platform,Certes Computing Ltd,189010," 5,604.40 ",Information Management Services,SME,Programme Expenditure
UK Statistics Family,Office for National Statistics,07/10/2020,Exp - Purchase Of Goods/Services - Contractors,IT Applications,Certes Computing Ltd,189010," 14,398.56 ",Information Management Services,SME,Programme Expenditure
UK Statistics Family,Office for National Statistics,07/10/2020,Exp - Purchase Of Goods/Services - Contractors,Digital Delivery,Certes Computing Ltd,189010," 9,325.68 ",Information Management Services,SME,Programme Expenditure
UK Statistics Family,Office for National Statistics,07/10/2020,Exp - Purchase Of Goods/Services - Contractors,Digital Delivery,Certes Computing Ltd,189010," 13,386.56 ",Information Management Services,SME,Programme Expenditure
UK Statistics Family,Office for National Statistics,07/10/2020,Surveys,Prices Division,Kantar UK Ltd,189013," 205,897.00 ",Statistical Services,Large,Programme Expenditure
UK Statistics Family,Office for National Statistics,07/10/2020,Exp - Purchase Of Goods/Services - Contractors,Testing,Parity Resources Limited,189015," 13,264.56 ",Information Management Services,Large,Programme Expenditure
UK Statistics Family,Office for National Statistics,07/10/2020,Exp - Purchase Of Goods/Services - Contractors,Programme Delivery,Parity Resources Limited,189015," 14,154.77 ",Information Management Services,Large,Programme Expenditure
UK Statistics Family,Office for National Statistics,07/10/2020,Exp - Purchase Of Goods/Services - Contractors,Security Advisory,Parity Resources Limited,189015," 28,246.46 ",Information Management Services,Large,Programme Expenditure
UK Statistics Family,Office for National Statistics,07/10/2020,Exp - Purchase Of Goods/Services - Contractors,Strategy And Architecture,Parity Resources Limited,189015," 7,209.00 ",Information Management Services,Large,Programme Expenditure
UK Statistics Family,Office for National Statistics,07/10/2020,Exp - Purchase Of Goods/Services - Contractors,IT Applications,Parity Resources Limited,189015," 13,636.22 ",Information Management Services,Large,Programme Expenditure
UK Statistics Family,Office for National Statistics,07/10/2020,Exp - Purchase Of Goods/Services - Contractors,Digital Delivery,Parity Resources Limited,189015," 10,076.58 ",Information Management Services,Large,Programme Expenditure
UK Statistics Family,Office for National Statistics,07/10/2020,Exp - Purchase Of Goods/Services - IT Contractual Services,Tech Delivery Next Gen IT And Infrastructure,Diegesis Limited,189016," 42,840.00 ",Information Management Services,Large,Programme Expenditure
UK Statistics Family,Office for National Statistics,07/10/2020,Exp - Purchase Of Goods/Services - IT Contractual Services,IT Applications,Diegesis Limited,189016," 144,570.00 ",Information Management Services,Large,Programme Expenditure
UK Statistics Family,Office for National Statistics,07/10/2020,Exp - Purchase Of Goods/Services - Contractors,Business Architecture,Malikshaw Interim & Executive,189068," 13,680.00 ",Information Management Services,SME,Programme Expenditure
UK Statistics Family,Office for National Statistics,07/10/2020,Exp - Purchase Of Goods/Services - Contractors,Testing,Malikshaw Interim & Executive,189068," 11,400.00 ",Information Management Services,SME,Programme Expenditure
UK Statistics Family,Office for National Statistics,07/10/2020,Exp - Purchase Of Goods/Services - Contractors,Testing,Malikshaw Interim & Executive,189068," 60,420.00 ",Information Management Services,SME,Programme Expenditure
UK Statistics Family,Office for National Statistics,07/10/2020,Exp - Purchase Of Goods/Services - Contractors,Tech Delivery Legacy Sp,Malikshaw Interim & Executive,189068," 30,966.67 ",Information Management Services,SME,Programme Expenditure
UK Statistics Family,Office for National Statistics,07/10/2020,Exp - Purchase Of Goods/Services - Contractors,IT Applications,Malikshaw Interim & Executive,189068," 15,840.00 ",Information Management Services,SME,Programme Expenditure
UK Statistics Family,Office for National Statistics,07/10/2020,Exp - Purchase Of Goods/Services - Contractors,Digital Delivery,Malikshaw Interim & Executive,189068," 10,800.00 ",Information Management Services,SME,Programme Expenditure
UK Statistics Family,Office for National Statistics,07/10/2020,Exp - Short-Term Contract & Agency Staff - Full Cost,Data As A Service,Malikshaw Interim & Executive,189068," 4,237.54 ",Information Management Services,SME,Programme Expenditure
UK Statistics Family,Office for National Statistics,07/10/2020,Survey Incentive Vouchers,Property Services,Gresham Office Furniture Limited,189076," 44,193.60 ",Office Furniture,SME,Programme Expenditure
UK Statistics Family,Office for National Statistics,07/10/2020,Hosting,IT Operations,CTS (Cloud Technology Solutions Ltd),189077," 95,982.43 ",DST Infrastructure Preparation,Large,Programme Expenditure
UK Statistics Family,Office for National Statistics,07/10/2020,Exp - Purchase Of Goods/Services - IT Contractual Services,Digital Delivery,Equal Experts UK Ltd,189079," 133,250.40 ",Information Management Services,Large,Programme Expenditure
UK Statistics Family,Office for National Statistics,08/10/2020,Exp - Purchase Of Goods/Services - IT Contractual Services,Digital Publishing,Swirrl It Ltd,189123," 72,213.60 ",Information Management Services,SME,Programme Expenditure
UK Statistics Family,Office for National Statistics,08/10/2020,Exp - Purchase Of Goods/Services - Other ICT Costs Software,Finance,Scc,189130," 154,286.88 ",Software Licenses,Large,Programme Expenditure
UK Statistics Family,Office for National Statistics,08/10/2020,Other Goods And Services,Tech Delivery Next Gen IT And Infrastructure,Scc,189130," 7,164.05 ",Software Licenses,Large,Programme Expenditure
UK Statistics Family,Office for National Statistics,08/10/2020,End User Software And Hardware,IT Operations,Stone Computers,189134," 54,000.00 ",Computers and Peripherals ,Large,Programme Expenditure
UK Statistics Family,Office for National Statistics,08/10/2020,Other Goods And Services,Social Survey Transformation Newport,APS Group,189142," 251,923.76 ",Mailing Services,Large,Programme Expenditure
UK Statistics Family,Office for National Statistics,08/10/2020,Exp - Purchase Of Goods/Services - Contractors,Digital Publishing,Malikshaw Interim & Executive,189143," 33,691.22 ",Information Management Services,SME,Programme Expenditure
UK Statistics Family,Office for National Statistics,08/10/2020,Exp - Purchase Of Goods/Services - Contractors,Digital Delivery,Malikshaw Interim & Executive,189143," 15,840.00 ",Information Management Services,SME,Programme Expenditure
UK Statistics Family,Office for National Statistics,08/10/2020,Exp - Purchase Of Goods/Services - Contractors,Business Architecture,Parity Resources Limited,189148," 21,357.04 ",Information Management Services,Large,Programme Expenditure
UK Statistics Family,Office for National Statistics,08/10/2020,Exp - Purchase Of Goods/Services - Contractors,Testing,Parity Resources Limited,189148," 13,680.00 ",Information Management Services,Large,Programme Expenditure
UK Statistics Family,Office for National Statistics,08/10/2020,Exp - Purchase Of Goods/Services - Contractors,Programme Delivery,Parity Resources Limited,189148," 12,210.00 ",Information Management Services,Large,Programme Expenditure
UK Statistics Family,Office for National Statistics,08/10/2020,Exp - Purchase Of Goods/Services - Contractors,Programme Delivery,Parity Resources Limited,189148," 12,335.40 ",Information Management Services,Large,Programme Expenditure
UK Statistics Family,Office for National Statistics,08/10/2020,Exp - Short-Term Contract & Agency Staff - Full Cost,Strategy And Engagement,Parity Resources Limited,189148," 1,001.22 ",Information Management Services,Large,Programme Expenditure
UK Statistics Family,Office for National Statistics,08/10/2020,Exp - Purchase Of Goods/Services - Contractors,Data Architecture,Parity Resources Limited,189148," 3,592.56 ",Information Management Services,Large,Programme Expenditure
UK Statistics Family,Office for National Statistics,08/10/2020,Exp - Purchase Of Goods/Services - Contractors,IT Applications,Parity Resources Limited,189148," 12,655.92 ",Information Management Services,Large,Programme Expenditure
UK Statistics Family,Office for National Statistics,08/10/2020,Exp - Short-Term Contract & Agency Staff - Full Cost,Digital Delivery,Parity Resources Limited,189148, 637.20 ,Information Management Services,Large,Programme Expenditure
UK Statistics Family,Office for National Statistics,08/10/2020,Exp - Purchase Of Goods/Services - Contractors,Digital Delivery,Parity Resources Limited,189148," 26,554.75 ",Information Management Services,Large,Programme Expenditure
UK Statistics Family,Office for National Statistics,08/10/2020,Exp - Purchase Of Goods/Services - Contractors,Digital Delivery,Parity Resources Limited,189148," 10,047.74 ",Information Management Services,Large,Programme Expenditure
UK Statistics Family,Office for National Statistics,08/10/2020,Exp - Purchase Of Goods/Services - Contractors,Digital Delivery,Parity Resources Limited,189148," 13,636.22 ",Information Management Services,Large,Programme Expenditure
UK Statistics Family,Office for National Statistics,08/10/2020,Exp - Purchase Of Goods/Services - IT Contractual Services,Digital Delivery,Parity Resources Limited,189148," 10,380.96 ",Information Management Services,Large,Programme Expenditure
UK Statistics Family,Office for National Statistics,08/10/2020,Exp - Short-Term Contract & Agency Staff - Full Cost,Public Sector And Households,Parity Resources Limited,189148," 1,001.22 ",Information Management Services,Large,Programme Expenditure
UK Statistics Family,Office for National Statistics,08/10/2020,Exp - Purchase Of Goods/Services - Contractors,Business Architecture,LA FOSSE ASSOCIATES LIMITED,189149," 31,590.00 ",Information Management Services,Large,Programme Expenditure
UK Statistics Family,Office for National Statistics,08/10/2020,Exp - Purchase Of Goods/Services - Contractors,Senior Management Team Design,SmartSourcing Ltd,189150," 13,680.00 ",Information Management Services,SME,Programme Expenditure
UK Statistics Family,Office for National Statistics,08/10/2020,Exp - Purchase Of Goods/Services - Contractors,Data Architecture,SmartSourcing Ltd,189150," 27,347.74 ",Information Management Services,SME,Programme Expenditure
UK Statistics Family,Office for National Statistics,08/10/2020,EXP - PURCHASE OF GOODS/SERVICES -  NON IT CONTRACTUAL PAYMENTS,Data Collection Service,Leidos Innovations UK Limited,189151," 1,918,991.96 ",Questionnaire Management,Large,Programme Expenditure
UK Statistics Family,Office for National Statistics,09/10/2020,Stationery,Lodgecard,Royal Bank of Scotland,189235," 1,477.59 ",Multiple Procurement Card Purchases  - Stationery ,Large,Programme Expenditure
UK Statistics Family,Office for National Statistics,09/10/2020,Other Goods And Services,GPC,Royal Bank of Scotland,189235," 23,503.85 ",Multiple Procurement Card Purchases - other goods/services  ,Large,Programme Expenditure
UK Statistics Family,Office for National Statistics,09/10/2020,Travel And Subsistence,Car Hire,Royal Bank of Scotland,189235," 3,569.22 ",Multiple Procurement Card Purchases - Vehicle Hire  ,Large,Programme Expenditure
UK Statistics Family,Office for National Statistics,09/10/2020,Stationery,Survey Processing Centre,APS Group,189237, 37.32 ,Mailing Services,Large,Programme Expenditure
UK Statistics Family,Office for National Statistics,09/10/2020,Other Goods And Services,Social Survey Transformation Newport,APS Group,189237," 40,696.60 ",Mailing Services,Large,Programme Expenditure
UK Statistics Family,Office for National Statistics,09/10/2020,Exp - Purchase Of Goods/Services - Contractors,Business Architecture,LA FOSSE ASSOCIATES LIMITED,189241," 6,060.00 ",Information Management Services,Large,Programme Expenditure
UK Statistics Family,Office for National Statistics,09/10/2020,Exp - Purchase Of Goods/Services - Contractors,Business Architecture,LA FOSSE ASSOCIATES LIMITED,189241," 36,299.94 ",Information Management Services,Large,Programme Expenditure
UK Statistics Family,Office for National Statistics,09/10/2020,Exp - Purchase Of Goods/Services - Contractors,Census CCS Data Collection,LA FOSSE ASSOCIATES LIMITED,189241," 3,450.00 ",Information Management Services,Large,Programme Expenditure
UK Statistics Family,Office for National Statistics,09/10/2020,Exp - Purchase Of Goods/Services - Contractors,Portfolio Delivery,LA FOSSE ASSOCIATES LIMITED,189241," 3,450.00 ",Information Management Services,Large,Programme Expenditure
UK Statistics Family,Office for National Statistics,09/10/2020,Exp - Purchase Of Goods/Services - Contractors,Data Architecture,LA FOSSE ASSOCIATES LIMITED,189241," 4,050.00 ",Information Management Services,Large,Programme Expenditure
UK Statistics Family,Office for National Statistics,09/10/2020,Exp - Purchase Of Goods/Services - Contractors,Tech Delivery Legacy Sp,LA FOSSE ASSOCIATES LIMITED,189241," 7,200.00 ",Information Management Services,Large,Programme Expenditure
UK Statistics Family,Office for National Statistics,09/10/2020,Exp - Purchase Of Goods/Services - Contractors,Tech Delivery Legacy Sp,LA FOSSE ASSOCIATES LIMITED,189241," 3,600.00 ",Information Management Services,Large,Programme Expenditure
UK Statistics Family,Office for National Statistics,12/10/2020,Exp - Purchase Of Goods/Services - IT Contractual Services,International Trade And Transactions,Mango Solutions,189303," 16,320.00 ",Information Management Services,SME,Programme Expenditure
UK Statistics Family,Office for National Statistics,12/10/2020,Exp - Purchase Of Goods/Services - IT Contractual Services,International Trade And Transactions,Mango Solutions,189303," 44,880.00 ",Information Management Services,SME,Programme Expenditure
UK Statistics Family,Office for National Statistics,12/10/2020,Exp - Purchase Of Goods/Services - IT Contractual Services,DST Reapportioning,E Synergy Solutions,189304," 15,180.00 ",Information Management Services,SME,Programme Expenditure
UK Statistics Family,Office for National Statistics,12/10/2020,Exp - Purchase Of Goods/Services - IT Contractual Services,DST Reapportioning,E Synergy Solutions,189304," 30,240.00 ",Information Management Services,SME,Programme Expenditure
UK Statistics Family,Office for National Statistics,12/10/2020,Exp - Purchase Of Goods/Services - IT Contractual Services,Strategy And Architecture,E Synergy Solutions,189304," 15,840.00 ",Information Management Services,SME,Programme Expenditure
UK Statistics Family,Office for National Statistics,12/10/2020,Exp - Purchase Of Goods/Services - IT Contractual Services,Tech Delivery Legacy Sp,E Synergy Solutions,189304," 86,724.00 ",Information Management Services,SME,Programme Expenditure
UK Statistics Family,Office for National Statistics,12/10/2020,Exp - Purchase Of Goods/Services - Contractors,IT Operations,E Synergy Solutions,189304, 330.00 ,Information Management Services,SME,Programme Expenditure
UK Statistics Family,Office for National Statistics,12/10/2020,Exp - Purchase Of Goods/Services - IT Contractual Services,IT Operations,E Synergy Solutions,189304," 34,320.00 ",Information Management Services,SME,Programme Expenditure
UK Statistics Family,Office for National Statistics,12/10/2020,Exp - Purchase Of Goods/Services - IT Contractual Services,IT Operations,E Synergy Solutions,189304," 98,268.00 ",Information Management Services,SME,Programme Expenditure
UK Statistics Family,Office for National Statistics,12/10/2020,Exp - Purchase Of Goods/Services - Contractors,Testing,La International,189310," 4,730.99 ",Information Management Services,SME,Programme Expenditure
UK Statistics Family,Office for National Statistics,12/10/2020,Exp - Purchase Of Goods/Services - Contractors,Testing,La International,189310," 8,265.90 ",Information Management Services,SME,Programme Expenditure
UK Statistics Family,Office for National Statistics,12/10/2020,Exp - Purchase Of Goods/Services - Contractors,Testing,La International,189310," 10,925.08 ",Information Management Services,SME,Programme Expenditure
UK Statistics Family,Office for National Statistics,12/10/2020,Exp - Purchase Of Goods/Services - Contractors,Sustainability And Inequalities,La International,189310," 10,102.08 ",Information Management Services,SME,Programme Expenditure
UK Statistics Family,Office for National Statistics,12/10/2020,Exp - Purchase Of Goods/Services - Contractors,Security Advisory,La International,189310," 7,689.24 ",Information Management Services,SME,Programme Expenditure
UK Statistics Family,Office for National Statistics,12/10/2020,Exp - Purchase Of Goods/Services - Contractors,Security Advisory,La International,189310," 3,470.85 ",Information Management Services,SME,Programme Expenditure
UK Statistics Family,Office for National Statistics,12/10/2020,Exp - Purchase Of Goods/Services - Contractors,Tech Delivery SRS,La International,189310," 3,588.30 ",Information Management Services,SME,Programme Expenditure
UK Statistics Family,Office for National Statistics,12/10/2020,Exp - Purchase Of Goods/Services - Contractors,Tech Delivery Legacy Sp,La International,189310," 17,044.60 ",Information Management Services,SME,Programme Expenditure
UK Statistics Family,Office for National Statistics,12/10/2020,Exp - Purchase Of Goods/Services - Contractors,IT Applications,La International,189310," 11,867.34 ",Information Management Services,SME,Programme Expenditure
UK Statistics Family,Office for National Statistics,12/10/2020,Exp - Purchase Of Goods/Services - Contractors,Digital Delivery,La International,189310," 9,611.64 ",Information Management Services,SME,Programme Expenditure
UK Statistics Family,Office for National Statistics,12/10/2020,Exp - Purchase Of Goods/Services - Contractors,Digital Delivery,La International,189310," 11,533.86 ",Information Management Services,SME,Programme Expenditure
UK Statistics Family,Office for National Statistics,12/10/2020,Exp - Purchase Of Goods/Services - Contractors,Digital Delivery,La International,189310," 31,935.88 ",Information Management Services,SME,Programme Expenditure
UK Statistics Family,Office for National Statistics,12/10/2020,Hosting,IT Operations,Amazon Web Services Inc,189316," 68,498.86 ",Information Management Services,Large,Programme Expenditure
UK Statistics Family,Office for National Statistics,12/10/2020,Marketing & Media,Stakeholder Engagement And Comms,Manning Gottlieb,189319," 58,866.84 ",Marketing Services,Large,Programme Expenditure
UK Statistics Family,Office for National Statistics,12/10/2020,End User Software And Hardware,Data Architecture,Sandhill,189322," 116,965.20 ",Software Licenses,SME,Programme Expenditure
UK Statistics Family,Office for National Statistics,13/10/2020,FM Contract Payments,FM Payments,Vinci Construction UK Limited,189326," 108,867.14 ",Facilities Mangement Services,Large,Programme Expenditure
UK Statistics Family,Office for National Statistics,13/10/2020,Exp - Short-Term Contract & Agency Staff - Full Cost,Business Change Support,Concept Information Technology Ltd T/A Concept Resourcing,189327," 3,801.02 ",Information Management Services,Large,Programme Expenditure
UK Statistics Family,Office for National Statistics,13/10/2020,Exp - Short-Term Contract & Agency Staff - Full Cost,Business Change Support,Concept Information Technology Ltd T/A Concept Resourcing,189327," 3,828.25 ",Information Management Services,Large,Programme Expenditure
UK Statistics Family,Office for National Statistics,13/10/2020,Exp - Short-Term Contract & Agency Staff - Full Cost,Business Change Support,Concept Information Technology Ltd T/A Concept Resourcing,189327," 3,828.25 ",Information Management Services,Large,Programme Expenditure
UK Statistics Family,Office for National Statistics,13/10/2020,Exp - Short-Term Contract & Agency Staff - Full Cost,Strategy And Engagement,Concept Information Technology Ltd T/A Concept Resourcing,189327," 4,034.38 ",Information Management Services,Large,Programme Expenditure
UK Statistics Family,Office for National Statistics,13/10/2020,Exp - Purchase Of Goods/Services - Contractors,Census & Soc Methodology Dd,Concept Information Technology Ltd T/A Concept Resourcing,189327," 7,254.00 ",Information Management Services,Large,Programme Expenditure
UK Statistics Family,Office for National Statistics,13/10/2020,Exp - Short-Term Contract & Agency Staff - Full Cost,Data Architecture,Concept Information Technology Ltd T/A Concept Resourcing,189327," 4,215.64 ",Information Management Services,Large,Programme Expenditure
UK Statistics Family,Office for National Statistics,13/10/2020,Exp - Purchase Of Goods/Services - Contractors,Tech Delivery Legacy Sp,Certes Computing Ltd,189331," 12,778.03 ",Information Management Services,SME,Programme Expenditure
UK Statistics Family,Office for National Statistics,13/10/2020,Exp - Purchase Of Goods/Services - Contractors,Tech Delivery Legacy Sp,Certes Computing Ltd,189331," 13,678.63 ",Information Management Services,SME,Programme Expenditure
UK Statistics Family,Office for National Statistics,13/10/2020,Exp - Purchase Of Goods/Services - Contractors,Tech Delivery Legacy Sp,Certes Computing Ltd,189331," 13,678.63 ",Information Management Services,SME,Programme Expenditure
UK Statistics Family,Office for National Statistics,13/10/2020,Exp - Purchase Of Goods/Services - Contractors,Tech Delivery Data As A Platform,Certes Computing Ltd,189331," 12,778.03 ",Information Management Services,SME,Programme Expenditure
UK Statistics Family,Office for National Statistics,13/10/2020,Exp - Purchase Of Goods And Services Consultants,Consultancy Management,Deloitte,189332," 75,218.40 ",Consultancy,Large,Programme Expenditure
UK Statistics Family,Office for National Statistics,13/10/2020,Exp - Purchase Of Goods/Services - Other Facilities Costs,Property London,Tandem Property Asset Management LLP - DG Lease Limited Service Charge Account,189342," 53,369.20 ",Rental Charges,Large,Programme Expenditure
UK Statistics Family,Office for National Statistics,13/10/2020,EXP - PURCHASE OF GOODS/SERVICES -  NON IT CONTRACTUAL PAYMENTS,Covid Infection Survey,HH Associates Ltd,189345," 274,492.01 ",Print and Post Services,SME,Programme Expenditure
UK Statistics Family,Office for National Statistics,14/10/2020,Exp - Short-Term Contract & Agency Staff - Full Cost,Business Change Support,Concept Information Technology Ltd T/A Concept Resourcing,189355," 2,709.19 ",Information Management Services,Large,Programme Expenditure
UK Statistics Family,Office for National Statistics,14/10/2020,Exp - Short-Term Contract & Agency Staff - Full Cost,Business Change Support,Concept Information Technology Ltd T/A Concept Resourcing,189355," 8,473.34 ",Information Management Services,Large,Programme Expenditure
UK Statistics Family,Office for National Statistics,14/10/2020,Exp - Short-Term Contract & Agency Staff - Full Cost,Business Change Support,Concept Information Technology Ltd T/A Concept Resourcing,189355," 8,565.91 ",Information Management Services,Large,Programme Expenditure
UK Statistics Family,Office for National Statistics,14/10/2020,Exp - Short-Term Contract & Agency Staff - Full Cost,Business Change Support,Concept Information Technology Ltd T/A Concept Resourcing,189355," 5,541.17 ",Information Management Services,Large,Programme Expenditure
UK Statistics Family,Office for National Statistics,14/10/2020,Exp - Short-Term Contract & Agency Staff - Full Cost,Business Change Support,Concept Information Technology Ltd T/A Concept Resourcing,189355," 4,645.09 ",Information Management Services,Large,Programme Expenditure
UK Statistics Family,Office for National Statistics,14/10/2020,Exp - Short-Term Contract & Agency Staff - Full Cost,International Trade And Transactions,Concept Information Technology Ltd T/A Concept Resourcing,189355," 3,825.54 ",Information Management Services,Large,Programme Expenditure
UK Statistics Family,Office for National Statistics,14/10/2020,Exp - Short-Term Contract & Agency Staff - Full Cost,International Trade And Transactions,Concept Information Technology Ltd T/A Concept Resourcing,189355," 3,828.25 ",Information Management Services,Large,Programme Expenditure
UK Statistics Family,Office for National Statistics,14/10/2020,Exp - Short-Term Contract & Agency Staff - Full Cost,Finance,Concept Information Technology Ltd T/A Concept Resourcing,189355," 2,810.41 ",Information Management Services,Large,Programme Expenditure
UK Statistics Family,Office for National Statistics,14/10/2020,Exp - Short-Term Contract & Agency Staff - Full Cost,Data Architecture,Concept Information Technology Ltd T/A Concept Resourcing,189355," 5,909.84 ",Information Management Services,Large,Programme Expenditure
UK Statistics Family,Office for National Statistics,14/10/2020,Exp - Purchase Of Goods/Services - Contractors,Data Architecture,Concept Information Technology Ltd T/A Concept Resourcing,189355," 13,920.00 ",Information Management Services,Large,Programme Expenditure
UK Statistics Family,Office for National Statistics,14/10/2020,Exp - Short-Term Contract & Agency Staff - Full Cost,Business Statistics Transformation,Concept Information Technology Ltd T/A Concept Resourcing,189355," 3,022.31 ",Information Management Services,Large,Programme Expenditure
UK Statistics Family,Office for National Statistics,14/10/2020,Exp - Short-Term Contract & Agency Staff - Full Cost,Business Statistics Transformation,Concept Information Technology Ltd T/A Concept Resourcing,189355," 10,856.77 ",Information Management Services,Large,Programme Expenditure
UK Statistics Family,Office for National Statistics,14/10/2020,Exp - Purchase Of Goods/Services - Contractors,Data Architecture,La International,189365," 7,112.52 ",Information Management Services,SME,Programme Expenditure
UK Statistics Family,Office for National Statistics,14/10/2020,Exp - Purchase Of Goods/Services - Contractors,Data Architecture,La International,189365," 2,819.38 ",Information Management Services,SME,Programme Expenditure
UK Statistics Family,Office for National Statistics,14/10/2020,Exp - Purchase Of Goods/Services - Contractors,Data Architecture,La International,189365," 3,588.30 ",Information Management Services,SME,Programme Expenditure
UK Statistics Family,Office for National Statistics,14/10/2020,Exp - Purchase Of Goods/Services - Contractors,IT Applications,La International,189365," 6,279.60 ",Information Management Services,SME,Programme Expenditure
UK Statistics Family,Office for National Statistics,14/10/2020,Exp - Purchase Of Goods/Services - Contractors,Digital Delivery,La International,189365," 13,456.26 ",Information Management Services,SME,Programme Expenditure
UK Statistics Family,Office for National Statistics,14/10/2020,Other Goods And Services,Social Survey Transformation Newport,APS Group,189368," 247,001.33 ",Mailing Services,Large,Programme Expenditure
UK Statistics Family,Office for National Statistics,14/10/2020,Exp - Purchase Of Goods/Services - IT Contractual Services,Office Of Chief Data And Information,Akamai Technologies Limited,189375," 36,200.00 ",Information Management Services,SME,Programme Expenditure
UK Statistics Family,Office for National Statistics,14/10/2020,Surveys,Prices Division,Kantar UK Ltd,189382," 205,897.00 ",Statistical Services,Large,Programme Expenditure
UK Statistics Family,Office for National Statistics,15/10/2020,Exp - Purchase Of Goods/Services - IT Contractual Services,Tech Delivery Data As A Platform,Kainos,189498," 96,006.81 ",Information Management Services,Large,Programme Expenditure
UK Statistics Family,Office for National Statistics,15/10/2020,Hosting,Tech Delivery Data As A Platform,Kainos,189498," 9,556.03 ",Information Management Services,Large,Programme Expenditure
UK Statistics Family,Office for National Statistics,15/10/2020,Exp - Purchase Of Goods And Services Consultants,Digital Delivery,Xma Limited,189501," 1,406.26 ",Leasing of Devices,Large,Programme Expenditure
UK Statistics Family,Office for National Statistics,15/10/2020,Postage,Digital Delivery,Xma Limited,189501," 26,707.56 ",Leasing of Devices,Large,Programme Expenditure
UK Statistics Family,Office for National Statistics,15/10/2020,Exp - Purchase Of Goods/Services - IT Contractual Services,Digital Delivery,Xma Limited,189501," 99,439.96 ",Leasing of Devices,Large,Programme Expenditure
UK Statistics Family,Office for National Statistics,15/10/2020,Exp - Purchase Of Goods/Services - Contractors,Digital Delivery,Certes Computing Ltd,189503," 30,179.22 ",Information Management Services,SME,Programme Expenditure
UK Statistics Family,Office for National Statistics,15/10/2020,Training & Development,Programme Other,DNA DEFINITIVE LTD,189508," 29,940.00 ",Training and Educational Services,SME,Programme Expenditure
UK Statistics Family,Office for National Statistics,15/10/2020,Exp - Purchase Of Goods/Services - Contractors,Digital Publishing,Malikshaw Interim & Executive,189510," 14,782.88 ",Information Management Services,SME,Programme Expenditure
UK Statistics Family,Office for National Statistics,15/10/2020,Exp - Purchase Of Goods/Services - Contractors,Digital Publishing,Malikshaw Interim & Executive,189510," 30,060.00 ",Information Management Services,SME,Programme Expenditure
UK Statistics Family,Office for National Statistics,15/10/2020,EXP - PURCHASE OF GOODS/SERVICES -  NON IT CONTRACTUAL PAYMENTS,Data Collection Service,Good Things Foundation,189511," 130,040.00 ",Census Assisted Digital Services,SME,Programme Expenditure
UK Statistics Family,Office for National Statistics,15/10/2020,Exp - Purchase Of Goods/Services - IT Contractual Services,Digital Delivery,Methods Business & Digital Technology Ltd,189515," 127,530.00 ",Information Management Services,Large,Programme Expenditure
UK Statistics Family,Office for National Statistics,15/10/2020,Exp - Purchase Of Goods/Services - Contractors,Business Architecture,LA FOSSE ASSOCIATES LIMITED,189519," 5,980.00 ",Information Management Services,Large,Programme Expenditure
UK Statistics Family,Office for National Statistics,15/10/2020,Exp - Purchase Of Goods/Services - Contractors,Consultancy Management,LA FOSSE ASSOCIATES LIMITED,189519," 3,150.00 ",Information Management Services,Large,Programme Expenditure
UK Statistics Family,Office for National Statistics,15/10/2020,Exp - Purchase Of Goods/Services - Contractors,Consultancy Management,LA FOSSE ASSOCIATES LIMITED,189519," 16,140.00 ",Information Management Services,Large,Programme Expenditure
UK Statistics Family,Office for National Statistics,15/10/2020,Exp - Purchase Of Goods/Services - Contractors,Consultancy Management,LA FOSSE ASSOCIATES LIMITED,189519," 2,750.00 ",Information Management Services,Large,Programme Expenditure
UK Statistics Family,Office for National Statistics,15/10/2020,Exp - Purchase Of Goods/Services - Contractors,Business Statistics Transformation,LA FOSSE ASSOCIATES LIMITED,189519," 4,620.00 ",Information Management Services,Large,Programme Expenditure
UK Statistics Family,Office for National Statistics,16/10/2020,Exp - Purchase Of Goods/Services - IT Contractual Services,Expansion Programme,Kainos,189529," 283,106.40 ",Information Management Services,Large,Programme Expenditure
UK Statistics Family,Office for National Statistics,16/10/2020,Exp - Purchase Of Goods/Services - Contractors,Strategy And Architecture,Certes Computing Ltd,189532," 29,206.80 ",Information Management Services,SME,Programme Expenditure
UK Statistics Family,Office for National Statistics,16/10/2020,Exp - Purchase Of Goods/Services - Contractors,Tech Delivery Legacy Sp,Certes Computing Ltd,189532," 6,533.16 ",Information Management Services,SME,Programme Expenditure
UK Statistics Family,Office for National Statistics,16/10/2020,Capital Major Works >25K,Property Newport,Paramount Office Interiors Ltd,189533," 34,204.70 ",Buildings Maintenance,SME,Programme Expenditure
UK Statistics Family,Office for National Statistics,16/10/2020,Major Works Over 25K,Property Newport,Paramount Office Interiors Ltd,189533," 63,522.98 ",Buildings Maintenance,SME,Programme Expenditure
UK Statistics Family,Office for National Statistics,16/10/2020,Capital Major Works >25K,Property Titchfield,Paramount Office Interiors Ltd,189533," 4,629.06 ",Buildings Maintenance,SME,Programme Expenditure
UK Statistics Family,Office for National Statistics,16/10/2020,Major Works Over 25K,Property Titchfield,Paramount Office Interiors Ltd,189533," 9,836.75 ",Buildings Maintenance,SME,Programme Expenditure
UK Statistics Family,Office for National Statistics,16/10/2020,EXP - PURCHASE OF GOODS/SERVICES -  NON IT CONTRACTUAL PAYMENTS,Data Collection Service,Serco Ltd,189537," 32,140.57 ",Census Contact Centre,Large,Programme Expenditure
UK Statistics Family,Office for National Statistics,16/10/2020,Exp - Purchase Of Goods/Services - IT Contractual Services,IT Operations,Methods Business & Digital Technology Ltd,189540," 85,320.00 ",Information Management Services,Large,Programme Expenditure
UK Statistics Family,Office for National Statistics,16/10/2020,Exp - Purchase Of Goods/Services - Contractors,Business Architecture,LA FOSSE ASSOCIATES LIMITED,189543," 3,360.00 ",Information Management Services,Large,Programme Expenditure
UK Statistics Family,Office for National Statistics,16/10/2020,Exp - Purchase Of Goods/Services - Contractors,Business Architecture,LA FOSSE ASSOCIATES LIMITED,189543," 42,712.48 ",Information Management Services,Large,Programme Expenditure
UK Statistics Family,Office for National Statistics,16/10/2020,Exp - Purchase Of Goods/Services - Contractors,Census CCS Data Collection,LA FOSSE ASSOCIATES LIMITED,189543," 6,900.00 ",Information Management Services,Large,Programme Expenditure
UK Statistics Family,Office for National Statistics,16/10/2020,Exp - Purchase Of Goods/Services - Contractors,Consultancy Management,LA FOSSE ASSOCIATES LIMITED,189543," 5,039.91 ",Information Management Services,Large,Programme Expenditure
UK Statistics Family,Office for National Statistics,16/10/2020,Exp - Purchase Of Goods/Services - Contractors,Consultancy Management,LA FOSSE ASSOCIATES LIMITED,189543," 6,300.00 ",Information Management Services,Large,Programme Expenditure
UK Statistics Family,Office for National Statistics,16/10/2020,Exp - Purchase Of Goods/Services - Contractors,Consultancy Management,LA FOSSE ASSOCIATES LIMITED,189543," 11,295.00 ",Information Management Services,Large,Programme Expenditure
UK Statistics Family,Office for National Statistics,16/10/2020,Exp - Purchase Of Goods/Services - Contractors,Consultancy Management,LA FOSSE ASSOCIATES LIMITED,189543," 1,320.00 ",Information Management Services,Large,Programme Expenditure
UK Statistics Family,Office for National Statistics,16/10/2020,Exp - Purchase Of Goods/Services - Contractors,Tech Delivery Legacy Sp,LA FOSSE ASSOCIATES LIMITED,189543," 3,600.00 ",Information Management Services,Large,Programme Expenditure
UK Statistics Family,Office for National Statistics,16/10/2020,Exp - Purchase Of Goods/Services - Contractors,Digital Delivery,LA FOSSE ASSOCIATES LIMITED,189543," 10,799.82 ",Information Management Services,Large,Programme Expenditure
UK Statistics Family,Office for National Statistics,16/10/2020,Exp - Purchase Of Goods/Services - Contractors,Digital Delivery,LA FOSSE ASSOCIATES LIMITED,189543," 15,480.00 ",Information Management Services,Large,Programme Expenditure
UK Statistics Family,Office for National Statistics,19/10/2020,Exp - Purchase Of Goods And Services Consultants,Security Operations,Scc,189641," 69,525.00 ",Information Management Services,Large,Programme Expenditure
UK Statistics Family,Office for National Statistics,19/10/2020,Exp - Purchase Of Goods/Services - Contractors,Tech Delivery Legacy Sp,Certes Computing Ltd,189643," 6,533.16 ",Information Management Services,SME,Programme Expenditure
UK Statistics Family,Office for National Statistics,19/10/2020,Exp - Purchase Of Goods/Services - Contractors,Tech Delivery Data As A Platform,Certes Computing Ltd,189643," 8,006.28 ",Information Management Services,SME,Programme Expenditure
UK Statistics Family,Office for National Statistics,19/10/2020,Exp - Purchase Of Goods/Services - Contractors,Digital Delivery,Certes Computing Ltd,189643," 3,600.00 ",Information Management Services,SME,Programme Expenditure
UK Statistics Family,Office for National Statistics,19/10/2020,Exp - Purchase Of Goods/Services - Contractors,Digital Delivery,Certes Computing Ltd,189643," 11,272.90 ",Information Management Services,SME,Programme Expenditure
UK Statistics Family,Office for National Statistics,19/10/2020,Exp - Purchase Of Goods/Services - Contractors,Testing,La International,189644," 2,114.53 ",Information Management Services,SME,Programme Expenditure
UK Statistics Family,Office for National Statistics,19/10/2020,Exp - Purchase Of Goods/Services - Contractors,Testing,La International,189644," 22,234.61 ",Information Management Services,SME,Programme Expenditure
UK Statistics Family,Office for National Statistics,19/10/2020,Exp - Purchase Of Goods/Services - Contractors,Tech Delivery SRS,La International,189644," 3,588.30 ",Information Management Services,SME,Programme Expenditure
UK Statistics Family,Office for National Statistics,19/10/2020,Exp - Purchase Of Goods/Services - Contractors,IT Applications,La International,189644," 11,867.34 ",Information Management Services,SME,Programme Expenditure
UK Statistics Family,Office for National Statistics,19/10/2020,Exp - Purchase Of Goods/Services - Contractors,Digital Delivery,La International,189644," 12,917.88 ",Information Management Services,SME,Programme Expenditure
UK Statistics Family,Office for National Statistics,20/10/2020,Exp - Purchase Of Goods/Services - IT Contractual Services,Digital Publishing,Swirrl It Ltd,189714," 72,213.60 ",Information Management Services,SME,Programme Expenditure
UK Statistics Family,Office for National Statistics,20/10/2020,Exp - Permanent UK Staff - PRP Voucher Payments,ONS Corporate Funds,Park Retail Ltd,189715,-420.22 ,Performance Reward Vouchers,Large,Programme Expenditure
UK Statistics Family,Office for National Statistics,20/10/2020,Exp - Purchase Of Goods/Services - Incentive Payments,Survey Management,Park Retail Ltd,189715," 117,837.69 ",Survey Response Incentive Vouchers,Large,Programme Expenditure
UK Statistics Family,Office for National Statistics,20/10/2020,Exp - Purchase Of Goods/Services - IT Contractual Services,Tech Delivery Legacy Sp,Ibm United Kingdom Ltd,189716," 37,740.92 ",Information Management Services,Large,Programme Expenditure
UK Statistics Family,Office for National Statistics,20/10/2020,Exp - Purchase Of Goods/Services - Contractors,Data Architecture,La International,189718," 6,407.68 ",Information Management Services,SME,Programme Expenditure
UK Statistics Family,Office for National Statistics,20/10/2020,Exp - Purchase Of Goods/Services - Contractors,Data Architecture,La International,189718," 11,277.54 ",Information Management Services,SME,Programme Expenditure
UK Statistics Family,Office for National Statistics,20/10/2020,Exp - Purchase Of Goods/Services - Contractors,Data Architecture,La International,189718," 15,378.48 ",Information Management Services,SME,Programme Expenditure
UK Statistics Family,Office for National Statistics,20/10/2020,Exp - Purchase Of Goods/Services - Contractors,IT Applications,La International,189718," 6,279.60 ",Information Management Services,SME,Programme Expenditure
UK Statistics Family,Office for National Statistics,20/10/2020,"ICT Outsourcing, Maintenance And Support",Divisional Strategy And Support,Vanguard Cymru,189721," 32,400.00 ",Training and Educational Services,SME,Programme Expenditure
UK Statistics Family,Office for National Statistics,20/10/2020,Exp - Purchase Of Goods/Services - Contractors,Covid Infection Survey,Parity Resources Limited,189723," 68,844.46 ",Information Management Services,Large,Programme Expenditure
UK Statistics Family,Office for National Statistics,20/10/2020,Exp - Purchase Of Goods/Services - Contractors,Data Architecture,Parity Resources Limited,189723," 3,592.56 ",Information Management Services,Large,Programme Expenditure
UK Statistics Family,Office for National Statistics,20/10/2020,Marketing & Media,Stakeholder Engagement And Comms,Family & Education / iChild,189725," 114,261.60 ",Marketing Services,SME,Programme Expenditure
UK Statistics Family,Office for National Statistics,20/10/2020,EXP - PURCHASE OF GOODS/SERVICES -  NON IT CONTRACTUAL PAYMENTS,Covid Infection Survey,HH Associates Ltd,189727," 158,241.96 ",Print and Post Services,SME,Programme Expenditure
UK Statistics Family,Office for National Statistics,20/10/2020,Exp - Purchase Of Goods And Services Consultants,Consultancy Management,Bloom Procurement Services Ltd,189729," 135,837.05 ",Consultancy,Large,Programme Expenditure
UK Statistics Family,Office for National Statistics,21/10/2020,Exp - Purchase Of Goods/Services - Contractors,Data Architecture,La International,189740," 3,524.22 ",Information Management Services,SME,Programme Expenditure
UK Statistics Family,Office for National Statistics,21/10/2020,Exp - Purchase Of Goods/Services - Contractors,Data Architecture,La International,189740," 10,572.72 ",Information Management Services,SME,Programme Expenditure
UK Statistics Family,Office for National Statistics,21/10/2020,Exp - Purchase Of Goods/Services - Contractors,Tech Delivery Legacy Sp,La International,189740," 27,488.92 ",Information Management Services,SME,Programme Expenditure
UK Statistics Family,Office for National Statistics,21/10/2020,Exp - Purchase Of Goods/Services - IT Contractual Services,Tech Delivery Legacy Sp,CTS (Cloud Technology Solutions Ltd),189750," 64,046.40 ",DST Infrastructure Preparation,Large,Programme Expenditure
UK Statistics Family,Office for National Statistics,21/10/2020,Marketing & Media,Stakeholder Engagement And Comms,M&C Saatchi UK Ltd,189757," 981,203.93 ",Marketing Services,Large,Programme Expenditure
UK Statistics Family,Office for National Statistics,22/10/2020,Exp - Purchase Of Goods/Services - Contractors,Business Architecture,LA FOSSE ASSOCIATES LIMITED,189921," 25,938.00 ",Information Management Services,Large,Programme Expenditure
UK Statistics Family,Office for National Statistics,22/10/2020,Exp - Short-Term Contract & Agency Staff - Full Cost,Stakeholder Engagement And Comms,Concept Information Technology Ltd T/A Concept Resourcing,189923," 2,749.04 ",Information Management Services,Large,Programme Expenditure
UK Statistics Family,Office for National Statistics,22/10/2020,Exp - Purchase Of Goods/Services - Contractors,Testing,Concept Information Technology Ltd T/A Concept Resourcing,189923," 10,058.90 ",Information Management Services,Large,Programme Expenditure
UK Statistics Family,Office for National Statistics,22/10/2020,Exp - Short-Term Contract & Agency Staff - Full Cost,Business Change Support,Concept Information Technology Ltd T/A Concept Resourcing,189923," 3,394.78 ",Information Management Services,Large,Programme Expenditure
UK Statistics Family,Office for National Statistics,22/10/2020,Exp - Short-Term Contract & Agency Staff - Full Cost,Data Architecture,Concept Information Technology Ltd T/A Concept Resourcing,189923, 149.50 ,Information Management Services,Large,Programme Expenditure
UK Statistics Family,Office for National Statistics,22/10/2020,Exp - Short-Term Contract & Agency Staff - Full Cost,Business Statistics Transformation,Concept Information Technology Ltd T/A Concept Resourcing,189923," 3,654.53 ",Information Management Services,Large,Programme Expenditure
UK Statistics Family,Office for National Statistics,22/10/2020,Exp - Short-Term Contract & Agency Staff - Full Cost,Interviewer Management TU,Concept Information Technology Ltd T/A Concept Resourcing,189923," 2,123.33 ",Information Management Services,Large,Programme Expenditure
UK Statistics Family,Office for National Statistics,22/10/2020,Exp - Short-Term Contract & Agency Staff - Full Cost,Prices Division,Concept Information Technology Ltd T/A Concept Resourcing,189923," 3,757.48 ",Information Management Services,Large,Programme Expenditure
UK Statistics Family,Office for National Statistics,22/10/2020,Telecoms,IT Operations,Bt Global Services,189927," 27,538.89 ",Telephony Charges,Large,Programme Expenditure
UK Statistics Family,Office for National Statistics,23/10/2020,Exp - Purchase Of Goods/Services - Contractors,Testing,La International,189955," 28,941.30 ",Information Management Services,SME,Programme Expenditure
UK Statistics Family,Office for National Statistics,23/10/2020,Exp - Purchase Of Goods/Services - Contractors,Testing,La International,189955," 5,126.16 ",Information Management Services,SME,Programme Expenditure
UK Statistics Family,Office for National Statistics,23/10/2020,Exp - Purchase Of Goods/Services - Contractors,Security Advisory,La International,189955," 6,941.70 ",Information Management Services,SME,Programme Expenditure
UK Statistics Family,Office for National Statistics,23/10/2020,Exp - Purchase Of Goods/Services - Contractors,Tech Delivery SRS,La International,189955," 3,588.30 ",Information Management Services,SME,Programme Expenditure
UK Statistics Family,Office for National Statistics,23/10/2020,Exp - Purchase Of Goods/Services - Contractors,IT Applications,La International,189955," 20,183.46 ",Information Management Services,SME,Programme Expenditure
UK Statistics Family,Office for National Statistics,23/10/2020,Exp - Purchase Of Goods/Services - Contractors,Digital Delivery,La International,189955," 17,223.84 ",Information Management Services,SME,Programme Expenditure
UK Statistics Family,Office for National Statistics,23/10/2020,Surveys,Prices Division,Mysupermarket Limited,189962," 30,000.00 ",Data Acquisition,SME,Programme Expenditure
UK Statistics Family,Office for National Statistics,26/10/2020,Other Professional Services,Data As A Service,Hmrc,190059," 231,618.10 ",Data Acquisition,Large,Programme Expenditure
UK Statistics Family,Office for National Statistics,26/10/2020,EXP - PURCHASE OF GOODS/SERVICES -  NON IT CONTRACTUAL PAYMENTS,Data Collection Service,Leidos Innovations UK Limited,190069," 3,159,831.82 ",Questionnaire Management,Large,Programme Expenditure
UK Statistics Family,Office for National Statistics,26/10/2020,Exp - Short-Term Contract & Agency Staff - Full Cost,International Trade And Transactions,Parity Resources Limited,190070," 7,620.10 ",Information Management Services,Large,Programme Expenditure
UK Statistics Family,Office for National Statistics,26/10/2020,Exp - Purchase Of Goods/Services - Contractors,International Trade And Transactions,Parity Resources Limited,190070," 22,885.20 ",Information Management Services,Large,Programme Expenditure
UK Statistics Family,Office for National Statistics,26/10/2020,Exp - Purchase Of Goods/Services - Contractors,Data Science Campus,Parity Resources Limited,190070, 667.20 ,Information Management Services,Large,Programme Expenditure
UK Statistics Family,Office for National Statistics,26/10/2020,Exp - Purchase Of Goods/Services - Contractors,Business Statistics Transformation,Parity Resources Limited,190070," 8,410.50 ",Information Management Services,Large,Programme Expenditure
UK Statistics Family,Office for National Statistics,26/10/2020,Exp - Short-Term Contract & Agency Staff - Full Cost,Labour Market,Parity Resources Limited,190070, 732.60 ,Information Management Services,Large,Programme Expenditure
UK Statistics Family,Office for National Statistics,27/10/2020,Exp - Permanent UK Staff - PRP Voucher Payments,ONS Corporate Funds,Park Retail Ltd,190132,-91.10 ,Performance Reward Vouchers,Large,Programme Expenditure
UK Statistics Family,Office for National Statistics,27/10/2020,Exp - Purchase Of Goods/Services - Incentive Payments,Survey Management,Park Retail Ltd,190132," 39,984.85 ",Survey Response Incentive Vouchers,Large,Programme Expenditure
UK Statistics Family,Office for National Statistics,27/10/2020,Exp - Purchase Of Goods/Services - Incentive Payments,Survey Management,Park Retail Ltd,190132," 14,216.22 ",Survey Response Incentive Vouchers,Large,Programme Expenditure
UK Statistics Family,Office for National Statistics,27/10/2020,Exp - Purchase Of Goods/Services - Incentive Payments,Survey Management,Park Retail Ltd,190132, 817.41 ,Survey Response Incentive Vouchers,Large,Programme Expenditure
UK Statistics Family,Office for National Statistics,27/10/2020,Exp - Purchase Of Goods/Services - Incentive Payments,Survey Management,Park Retail Ltd,190132," 7,776.02 ",Survey Response Incentive Vouchers,Large,Programme Expenditure
UK Statistics Family,Office for National Statistics,27/10/2020,Exp - Purchase Of Goods/Services - Incentive Payments,Survey Management,Park Retail Ltd,190132," 8,901.08 ",Survey Response Incentive Vouchers,Large,Programme Expenditure
UK Statistics Family,Office for National Statistics,27/10/2020,IT (Owned) At Cost - Additions,IT Operations,Scc,190134," 302,040.00 ",Software Licenses,Large,Programme Expenditure
UK Statistics Family,Office for National Statistics,27/10/2020,"ICT Outsourcing, Maintenance And Support",IT Operations,Scc,190134," 191,808.00 ",Software Licenses,Large,Programme Expenditure
UK Statistics Family,Office for National Statistics,27/10/2020,Telecoms,IT Operations,Bt Global Services,190135," 26,935.19 ",Telephony Charges,Large,Programme Expenditure
UK Statistics Family,Office for National Statistics,27/10/2020,Exp - Purchase Of Goods/Services - Contractors,Data Architecture,La International,190139," 6,760.10 ",Information Management Services,SME,Programme Expenditure
UK Statistics Family,Office for National Statistics,27/10/2020,Exp - Purchase Of Goods/Services - Contractors,Data Architecture,La International,190139," 3,524.22 ",Information Management Services,SME,Programme Expenditure
UK Statistics Family,Office for National Statistics,27/10/2020,Exp - Purchase Of Goods/Services - Contractors,Data Architecture,La International,190139," 17,044.50 ",Information Management Services,SME,Programme Expenditure
UK Statistics Family,Office for National Statistics,27/10/2020,Exp - Purchase Of Goods/Services - Contractors,Digital Delivery,La International,190139," 10,773.00 ",Information Management Services,SME,Programme Expenditure
UK Statistics Family,Office for National Statistics,27/10/2020,Surveys,Crime Statistics,Kantar UK Ltd,190149," 244,886.40 ",Statistical Services,Large,Programme Expenditure
UK Statistics Family,Office for National Statistics,27/10/2020,Exp - Purchase Of Goods/Services - IT Contractual Services,IT Operations,Methods Business & Digital Technology Ltd,190153," 31,050.00 ",Information Management Services,Large,Programme Expenditure
UK Statistics Family,Office for National Statistics,27/10/2020,Survey Incentive Vouchers,Census CCS Data Collection,Banner Group Ltd,190157," 108,000.00 ",Stationery,SME,Programme Expenditure
UK Statistics Family,Office for National Statistics,28/10/2020,FM Contract Payments,FM Payments,Vinci Construction UK Limited,190169," 330,203.23 ",Facilities Mangement Services,Large,Programme Expenditure
UK Statistics Family,Office for National Statistics,28/10/2020,Exp - Purchase Of Goods/Services - Contractors,Business Architecture Transformation And Statistical Strategy,La International,190175," 7,689.24 ",Information Management Services,SME,Programme Expenditure
UK Statistics Family,Office for National Statistics,28/10/2020,Exp - Purchase Of Goods/Services - Contractors,Portfolio Delivery,La International,190175," 19,191.34 ",Information Management Services,SME,Programme Expenditure
UK Statistics Family,Office for National Statistics,28/10/2020,Purchase of Goods and Services - Training,Data Science Campus,The Alan Turing Institute,190177," 56,251.24 ",Training and Educational Services,SME,Programme Expenditure
UK Statistics Family,Office for National Statistics,28/10/2020,Exp - Purchase Of Goods/Services - IT Contractual Services,IT Operations,CTS (Cloud Technology Solutions Ltd),190179," 130,964.40 ",DST Infrastructure Preparation,Large,Programme Expenditure
UK Statistics Family,Office for National Statistics,28/10/2020,Hosting,IT Operations,CTS (Cloud Technology Solutions Ltd),190179," 30,870.11 ",DST Infrastructure Preparation,Large,Programme Expenditure
UK Statistics Family,Office for National Statistics,28/10/2020,Exp - Purchase Of Goods/Services - Contractors,Programme Support,Parity Resources Limited,190183," 4,192.56 ",Information Management Services,Large,Programme Expenditure
UK Statistics Family,Office for National Statistics,28/10/2020,Exp - Purchase Of Goods/Services - Contractors,Covid Infection Survey,Parity Resources Limited,190183," 3,000.00 ",Information Management Services,Large,Programme Expenditure
UK Statistics Family,Office for National Statistics,28/10/2020,Exp - Short-Term Contract & Agency Staff - Full Cost,Strategy And Engagement,Parity Resources Limited,190183," 1,001.22 ",Information Management Services,Large,Programme Expenditure
UK Statistics Family,Office for National Statistics,28/10/2020,Exp - Purchase Of Goods/Services - Contractors,Analysis Microdata And Engagement,Parity Resources Limited,190183, 555.08 ,Information Management Services,Large,Programme Expenditure
UK Statistics Family,Office for National Statistics,28/10/2020,Exp - Short-Term Contract & Agency Staff - Full Cost,Data Architecture,Parity Resources Limited,190183," 1,465.20 ",Information Management Services,Large,Programme Expenditure
UK Statistics Family,Office for National Statistics,28/10/2020,Exp - Purchase Of Goods/Services - Contractors,IT Applications,Parity Resources Limited,190183," 2,307.00 ",Information Management Services,Large,Programme Expenditure
UK Statistics Family,Office for National Statistics,28/10/2020,Exp - Short-Term Contract & Agency Staff - Full Cost,Digital Delivery,Parity Resources Limited,190183, 785.88 ,Information Management Services,Large,Programme Expenditure
UK Statistics Family,Office for National Statistics,28/10/2020,Exp - Purchase Of Goods/Services - Contractors,Data Science Campus,Parity Resources Limited,190183," 12,676.80 ",Information Management Services,Large,Programme Expenditure
UK Statistics Family,Office for National Statistics,28/10/2020,Exp - Short-Term Contract & Agency Staff - Full Cost,Labour Market,Parity Resources Limited,190183, 732.60 ,Information Management Services,Large,Programme Expenditure
UK Statistics Family,Office for National Statistics,28/10/2020,Exp - Purchase Of Goods/Services - Contractors,Business Architecture,LA FOSSE ASSOCIATES LIMITED,190184," 18,175.00 ",Information Management Services,Large,Programme Expenditure
UK Statistics Family,Office for National Statistics,28/10/2020,Exp - Purchase Of Goods/Services - Contractors,Census CCS Data Collection,LA FOSSE ASSOCIATES LIMITED,190184," 3,450.00 ",Information Management Services,Large,Programme Expenditure
UK Statistics Family,Office for National Statistics,28/10/2020,Exp - Purchase Of Goods/Services - Contractors,Consultancy Management,LA FOSSE ASSOCIATES LIMITED,190184," 3,599.94 ",Information Management Services,Large,Programme Expenditure
UK Statistics Family,Office for National Statistics,28/10/2020,Exp - Purchase Of Goods/Services - Contractors,Consultancy Management,LA FOSSE ASSOCIATES LIMITED,190184," 3,150.00 ",Information Management Services,Large,Programme Expenditure
UK Statistics Family,Office for National Statistics,28/10/2020,Exp - Purchase Of Goods/Services - Contractors,Consultancy Management,LA FOSSE ASSOCIATES LIMITED,190184," 25,080.00 ",Information Management Services,Large,Programme Expenditure
UK Statistics Family,Office for National Statistics,28/10/2020,Exp - Purchase Of Goods/Services - Contractors,Consultancy Management,LA FOSSE ASSOCIATES LIMITED,190184," 2,750.00 ",Information Management Services,Large,Programme Expenditure
UK Statistics Family,Office for National Statistics,28/10/2020,Exp - Purchase Of Goods/Services - Contractors,Data Architecture,LA FOSSE ASSOCIATES LIMITED,190184," 4,050.00 ",Information Management Services,Large,Programme Expenditure
UK Statistics Family,Office for National Statistics,28/10/2020,Exp - Purchase Of Goods/Services - Contractors,Business Statistics Transformation,LA FOSSE ASSOCIATES LIMITED,190184," 3,300.00 ",Information Management Services,Large,Programme Expenditure
UK Statistics Family,Office for National Statistics,28/10/2020,EXP - PURCHASE OF GOODS/SERVICES -  NON IT CONTRACTUAL PAYMENTS,Census CCS Data Collection,Banner Group Ltd,190186," 28,934.40 ",Stationery,SME,Programme Expenditure
UK Statistics Family,Office for National Statistics,29/10/2020,Exp - Purchase Of Goods/Services - Incentive Payments,Interviewer Support,P & Mm Ltd,190292," 68,060.40 ",Survey Response Incentive Vouchers,Large,Programme Expenditure
UK Statistics Family,Office for National Statistics,29/10/2020,EXP - PURCHASE OF GOODS/SERVICES -  NON IT CONTRACTUAL PAYMENTS,Covid Infection Survey,HH Associates Ltd,190299," 46,753.15 ",Print and Post Services,SME,Programme Expenditure
UK Statistics Family,Office for National Statistics,02/10/2020,Surveys,Covid Infection Survey,IQVIA Limited,30002228," 18,911,679.60 ",Statistical Services,Large,Programme Expenditure
UK Statistics Family,Office for National Statistics,06/10/2020,Exp - Purchase Of Goods/Services - Incentive Payments,Covid Infection Survey,Sodexo Motivation Solutions U.K. ltd,30002229," 1,596,196.56 ",Survey Response Incentive Vouchers,Large,Programme Expenditure
UK Statistics Family,Office for National Statistics,06/10/2020,Exp - Purchase Of Goods/Services - Incentive Payments,Covid Infection Survey,Sodexo Motivation Solutions U.K. ltd,30002230," 219,175.00 ",Survey Response Incentive Vouchers,Large,Programme Expenditure
UK Statistics Family,Office for National Statistics,06/10/2020,Exp - Purchase Of Goods/Services - Incentive Payments,Covid Infection Survey,Sodexo Motivation Solutions U.K. ltd,30002231," 44,507.32 ",Survey Response Incentive Vouchers,Large,Programme Expenditure
UK Statistics Family,Office for National Statistics,07/10/2020,Exp - Purchase Of Goods/Services - Incentive Payments,Covid Infection Survey,Sodexo Motivation Solutions U.K. ltd,30002235," 43,716.96 ",Survey Response Incentive Vouchers,Large,Programme Expenditure
UK Statistics Family,Office for National Statistics,13/10/2020,Exp - Purchase Of Goods/Services - Incentive Payments,Covid Infection Survey,Sodexo Motivation Solutions U.K. ltd,30002238," 2,202,799.04 ",Survey Response Incentive Vouchers,Large,Programme Expenditure
UK Statistics Family,Office for National Statistics,19/10/2020,Exp - Purchase Of Goods/Services - Incentive Payments,Covid Infection Survey,Sodexo Motivation Solutions U.K. ltd,30002253," 57,995.04 ",Survey Response Incentive Vouchers,Large,Programme Expenditure
UK Statistics Family,Office for National Statistics,22/10/2020,Exp - Purchase Of Goods/Services - Incentive Payments,Covid Infection Survey,Sodexo Motivation Solutions U.K. ltd,30002254," 2,399,485.92 ",Survey Response Incentive Vouchers,Large,Programme Expenditure
UK Statistics Family,Office for National Statistics,23/10/2020,Exp - Purchase Of Goods/Services - Incentive Payments,Covid Infection Survey,Sodexo Motivation Solutions U.K. ltd,30002256," 60,576.48 ",Survey Response Incentive Vouchers,Large,Programme Expenditure
UK Statistics Family,Office for National Statistics,23/10/2020,Exp - Purchase Of Goods/Services - Incentive Payments,Covid Infection Survey,Sodexo Motivation Solutions U.K. ltd,30002258," 3,001,649.84 ",Survey Response Incentive Vouchers,Large,Programme Expenditure
UK Statistics Family,Office for National Statistics,28/10/2020,Surveys,Covid Infection Survey,IQVIA Limited,30002267," 34,328,834.40 ",Statistical Services,Large,Programme Expenditure
UK Statistics Family,Office for National Statistics,28/10/2020,Surveys,Covid Infection Survey,IQVIA Limited,30002268," 8,684,862.00 ",Statistical Services,Large,Programme Expenditure
,,,,,,Report Total," 90,020,845.53 ",,,
